{"text_format":"2","workbook":"xlsx","n_sheets":4,"sheets":["PEF Co-progettazione","note PE","legenda","elenchi"],"not_rendered":{"charts":0,"images":0,"macros":0,"external_links":0,"defined_names":2,"comments":0,"pivot_tables":0},"unopened":[],"bounds":{"document_bytes":16777216,"sheet_cells":100000,"run_cost":"one","rows_first":2000,"rows_last":500,"rows_between":2000,"halvings":0,"cell_chars":16384,"cell_head_chars":4096},"cells_cut":0,"cells_raw":0,"read":"whole","date_system":"1900"}

{"sheet":"PEF Co-progettazione","index":0,"n_rows":57,"n_cols":14,"rows_kept":57,"cut":false,"hidden":false,"merged":[[0,0,0,9],[1,0,1,9],[47,0,47,1],[1,12,1,13],[3,1,23,1],[25,1,43,1],[3,0,44,0]]}
["AVVISO PUBBLICO FINALIZZATO ALL’INDIVIDUAZIONE DI UN ENTE DEL TERZO SETTORE DISPONIBILE ALLA CO-PROGETTAZIONE PER LA GESTIONE DEI SERVIZI PRIMA INFANZIA.\nCUP C49G26000230002\nCIG BC743EF2C1"]
["VOCI DI SPESA",{"$nulls":11},"COPERTURE"]
["MACROTIPOLOGIA DI SPESA ",null,"TIPOLOGIA DI SPESA ","DESCRIZIONE","AZIONE","PARTNER","UNITÀ DI MISURA","QUANTITÀ ","COSTO UNITARIO","TOTALE  ",null,null,"CONTRBUTO COMUNALE","COFINANZIAMENTO"]
["A. COSTI DIRETTI","PERSONALE",{"$nulls":7},{"$f":"H4*I4","v":0}]
[{"$nulls":9},{"$f":"H5*I5","v":0}]
[{"$nulls":9},0]
[{"$nulls":9},0]
[{"$nulls":9},0]
[{"$nulls":9},0]
[{"$nulls":9},0]
[{"$nulls":9},0]
[{"$nulls":9},0]
[{"$nulls":9},0]
[{"$nulls":9},{"$f":"H14*I14","v":0}]
[{"$nulls":9},0]
[{"$nulls":9},0]
[{"$nulls":9},0]
[{"$nulls":9},0]
[{"$nulls":9},0]
[{"$nulls":9},0]
[{"$nulls":9},0]
[{"$nulls":9},0]
[{"$nulls":9},0]
[{"$nulls":9},0]
[null,"TOTALE COSTI DEL PERSONALE",{"$nulls":7},{"$f":"SUM(J4:J24)","v":0}]
[null,"ALTRE TIPOLOGIE DI SPESA",{"$nulls":7},0]
[{"$nulls":9},0]
[{"$nulls":9},0]
[{"$nulls":9},0]
[{"$nulls":9},0]
[{"$nulls":9},0]
[{"$nulls":9},0]
[{"$nulls":9},0]
[{"$nulls":9},0]
[{"$nulls":9},{"$f":"H35*I35","v":0}]
[{"$nulls":9},{"$f":"H36*I36","v":0}]
[{"$nulls":9},0]
[{"$nulls":9},0]
[{"$nulls":9},0]
[{"$nulls":9},0]
[{"$nulls":9},0]
[{"$nulls":9},0]
[{"$nulls":9},0]
[{"$nulls":9},0]
[null,"TOTALE ALTRI COSTI",{"$nulls":7},{"$f":"SUM(J26:J44)","v":0}]
[null,"TOTALE COSTI DIRETTI",{"$nulls":7},{"$f":"J45+J25","v":0}]
[]
["B. COSTI INDIRETTI (massimo 15% dei costi diretti ammissibili per il personale)",null,{"$f":"J25*15%","v":0}]
[{"$nulls":11},"TOTALI COPERTURE",{"$f":"SUM(M4:M48)","v":0},{"$f":"SUM(N4:N48)","v":0}]
[]
[null,null,"COSTI DIRETTI",{"$f":"J46","v":0},null,null,"CONTRIBUTO COMUNALE",{"$f":"M49","v":0}]
[null,null,"COSTI INDIRETTI",{"$f":"C48","v":0},null,null,"COFINANZIAMENTO",{"$f":"N49","v":0}]
[null,null,"TOTALE COSTI",{"$f":"SUM(D51:D52)","v":0},null,null,"TOTALE COPERTURE",{"$f":"SUM(H51:H52)","v":0}]
[]
[]
[]
[null,null,null,"LEGALE RAPPRESENTANTE"]

{"sheet":"note PE","index":1,"n_rows":1,"n_cols":1,"rows_kept":1,"cut":false,"hidden":false,"merged":[]}
["Note descrittive che illustrino le ipotesi tecnico-economiche e finanziarie relative al progetto"]

{"sheet":"legenda","index":2,"n_rows":12,"n_cols":2,"rows_kept":12,"cut":false,"hidden":false,"merged":[]}
["TIPOLOGIA DI SPESA ","Inserire una delle voci dal menù a tendina "]
["DESCRIZIONE","Inserire breve descrizione della voce di spesa (es. educatore, coordinatore, tipologo di bene acquistato)"]
["AZIONE","Indicare azione a cui si riferisce la spesa"]
["PARTNER","Inserire il nome del partner che sostiene la spesa"]
["UNITÀ DI MISURA","Inserire unità di misura/forfait quando non è possibile individuare unità di misura"]
["QUANTITÀ ","Inserire quantità/se si è indicato forfait inserire 1"]
["COSTO UNITARIO","Inserire costo unitario/costo forfettario quando si è indicato forfait"]
["TOTALE  ","il costo totale viene calcolato dalla formula (quantità x costo unitario)"]
[]
[]
[]
["COSTI INDIRETTI ","Sono costi che non sono o non possono essere collegati direttamente a un'attività specifica e comprendono di norma spese generali per cui è difficile determinare esattamente l'importo attribuibile a una voce di costo. Sono ammissibili nella misura forfettaria del 15% dei costi diretti ammissibili per il personale (cella J27). Tali costi comprendono, a titolo esemplificativo, le spese per fotocopie, spese postali e telefoniche.\nNel caso in cui, in sede di verifica del rendiconto presentato, si riscontrino\ndecurtazioni dei costi diretti sostenuti, i costi indiretti saranno riparametrati sulla base della percentuale risultante nel Piano economico approvato."]

{"sheet":"elenchi","index":3,"n_rows":9,"n_cols":1,"rows_kept":9,"cut":false,"hidden":true,"merged":[]}
["Personale interno "]
["Personale esterno"]
["Spese di viaggio, vitto e alloggio"]
["Spese legali e Spese Bancarie"]
["Noleggio o locazione di beni mobili"]
["Acquisto beni "]
["Acquisto servizi"]
["Spese generali"]
["Canoni di locazione immobiliare"]